Cogmind - Beta 13 @@@ ROGUE MODE // 2024.03.24 @ 11:59:18 Player: Ether Result: Destroyed by Autobeam Turret with Autobeam Performance ------------- Evolutions (0) 0 Regions Visited (2) 400 Robots Destroyed (31) 155 Value Destroyed (703) 703 Prototype IDs (0) 0 Alien Tech Used (0) 0 Bonus (0) 0 TOTAL SCORE: 1258 Bonus ------- None Cogmind --------- Core Integrity 0/250 Matter 290/300 Energy 166/170 System Corruption 1% Temperature Cool (77) Movement Walking (120) Location -10/Subcaves Parts ------- > --- POWER (1) -------- Makeshift Power Source > --- PROPULSION (2) --- Aluminum Leg Aluminum Leg > --- UTILITY (2) ------ Signal Interpreter Targeting Computer > --- WEAPON (2) ------- Particle Gun Particle Gun > --- INVENTORY (5) ---- Light Ion Engine Light Nuclear Core Structural Scanner Visual Processing Unit Sensor Array Peak State ------------ > --- POWER ------------ Light Nuclear Core > --- PROPULSION ------- Aluminum Leg Aluminum Leg > --- UTILITY ---------- Visual Processing Unit Targeting Computer > --- WEAPON ----------- Particle Gun Particle Gun > --- INVENTORY -------- Aluminum Leg Small Storage Unit Visual Processing Unit Sensor Array Light Assault Rifle [Rating: 12] Favorites ----------- Power Ion Engine Engine Ion Engine Power Core Light Nuclear Core Propulsion Aluminum Leg Leg Aluminum Leg Utility Targeting Computer Device Improved Terrain Scanner Storage Small Storage Unit Processor Targeting Computer Weapon Particle Gun Energy Gun Particle Gun Ballistic Gun Light Assault Rifle Launcher Grenade Launcher Build | -11 -10 -10 ------- Run | Yrd Mat Sub Slots Evolved . | . . . Power . | . . . Propulsion . | . . . Utility . | . . . Weapon . | . . . Parts Attached 26 | 8 16 2 Power 5 | 1 3 1 Engine 4 | 1 2 1 Core 1 | . 1 . Reactor . | . . . Propulsion 7 | 2 4 1 Treads . | . . . Leg 7 | 2 4 1 Wheel . | . . . Hover . | . . . Flight . | . . . Utility 5 | 2 3 . Device 1 | 1 . . Storage 1 | 1 . . Processor 3 | . 3 . Hackware . | . . . Protection . | . . . Artifact . | . . . Weapon 9 | 3 6 . Energy Gun 5 | 2 3 . Energy Cannon . | . . . Ballistic Gun 3 | 1 2 . Ballistic Cannon . | . . . Launcher 1 | . 1 . Special Weapon . | . . . Impact Weapon . | . . . Slashing Weapon . | . . . Piercing Weapon . | . . . Special Melee Weapon . | . . . Unidentified Prototypes . | . . . Parts Lost 6 | . 5 1 Power 2 | . 2 . Propulsion 1 | . . 1 Utility . | . . . Weapon 3 | . 3 . Highest Loss Streak 2 | . 2 1 To Critical Strikes . | . . . Average Slot Usage (%) 99 | . 99 99 Engine 5 | . 6 3 Core 7 | . 7 10 Leg 27 | . 28 27 Storage 2 | . 2 . Processor 25 | . 24 28 Energy Gun 21 | . 20 28 Ballistic Gun 4 | . 4 . Launcher 1 | . 1 . Naked Turns . | . . . Heaviest Build 15 | 14 15 11 Greatest Support 20 | 20 20 20 Greatest Overweight (x) 3 | 3 1 1 Average Overweight (x) . | . . . Largest Inventory Capacity 8 | 8 8 5 Average Capacity 6 | 7 5 5 Most Carried 8 | 8 8 5 Average Carried 5 | 7 5 4 Final Capacity 8 | 8 5 5 Final Carried 8 | 8 5 5 Class Distribution -------------------- 55% | Mutant 44% | Scavenger-Mutant Dominant Class ---------------- Scavenger-Mutant | -10/Materials Scavenger-Mutant | -10/Subcaves Resources | -11 -10 -10 ----------- Run | Yrd Mat Sub Matter Collected 504 | 280 204 20 Remotely . | . . . Salvage Created 985 | 118 736 131 Parts 62 | 9 44 9 Haulers Intercepted . | . . . Recyclers Shooed 1 | 1 . . Parts Field Recycled . | . . . Retrieved Matter . | . . . Parts Self-Destructed 9 | . . 9 Prevented . | . . . Kills | -11 -10 -10 ------- Run | Yrd Mat Sub Combat Hostiles Destroyed 20 | . 14 6 Guns 15 | . 9 6 AOE 5 | . 5 . Classes Destroyed 6 | 3 3 . Worker 3 | 1 2 . Tunneler 1 | 1 . . Recycler 4 | 1 3 . Watcher 3 | . 3 . Swarmer 7 | . 3 4 Grunt 13 | . 11 2 Best Kill Streak 7 | 2 7 6 Combat Bots Only 6 | . 5 6 Max Kills in Single Turn 3 | 1 3 1 Gunslinging . | . . . Exploded 2 | . 2 . Melee . | . . . Uniques/NPCs Destroyed . | . . . Combat | -11 -10 -10 -------- Run | Yrd Mat Sub Hostile Shots Fired 95 | . 51 44 Missed 31 | . 16 15 Damage Taken 985 | . 715 270 Core 250 | . 175 75 Absorbed by Shields . | . . . Core Remaining (%) 100 | 100 . . Volleys Fired 70 | 7 51 12 Largest 2 | 1 2 2 Hottest 130 | 40 130 130 Shots Fired 114 | 7 83 24 Gun 111 | 7 80 24 Cannon . | . . . Launcher 3 | . 3 . Special . | . . . Kinetic 39 | . 39 . Thermal 44 | . 20 24 Explosive 3 | . 3 . Electromagnetic 28 | 7 21 . Robot Hit Streak 13 | 2 13 9 Robot Miss Streak 3 | 1 3 2 Penetration Max . | . . . Secondary Targets . | . . . Shots Hit Robots 80 | 5 58 17 Core Hits 50 | 3 40 7 Critical Kills . | . . . Critical Parts Destroyed . | . . . Critical Strikes 3 | . 2 1 Burn 3 | . 2 1 Melee Attacks . | . . . Impact . | . . . Slashing . | . . . Piercing . | . . . Sneak Attacks . | . . . Combat Hostiles . | . . . Follow-up Attacks . | . . . Damage Inflicted 1772 | 65 1449 258 Guns 1005 | 65 682 258 Cannons . | . . . Explosions 767 | . 767 . Melee . | . . . Ramming . | . . . Kinetic 252 | . 252 . Thermal 682 | . 424 258 Explosive 502 | . 502 . Electromagnetic 336 | 65 271 . Impact . | . . . Slashing . | . . . Piercing . | . . . Highest Corruption 1 | . 1 1 Average Corruption 1 | . 1 1 Corruption Purged . | . . . Corruption Blocked . | . . . Effects 4 | . 2 2 Message Errors 1 | . . 1 Matter Fused 1 | . 1 . Heat Flow Errors 1 | . . 1 Data Loss (minor) 1 | . 1 . Overload Shots . | . . . Overflow Damage 161 | . 161 . Projectiles . | . . . Explosions 161 | . 161 . Melee . | . . . Knockbacks . | . . . Impact . | . . . Kinetic . | . . . Secondary . | . . . Self-Inflicted Damage 318 | . 318 . Shots 5 | . 5 . Rammed . | . . . Targets Rammed . | . . . Kicked . | . . . Crushed . | . . . Highest Temperature 204 | 20 204 192 Average Temperature 73 | 14 73 75 Received Heat Transfer 300 | . 216 84 Siege Activations . | . . . Robots Corrupted . | . . . Combat Hostiles . | . . . Parts Fried 2 | . 2 . Impact Corruptions . | . . . Robots Melted . | . . . Combat Hostiles . | . . . Parts Melted 1 | . . 1 Heat Transferred 1458 | . 755 703 Parts Sabotaged . | . . . Parts Stolen . | . . . Parts Stripped . | . . . Power Chain Reactions . | . . . Alert | -11 -10 -10 ------- Run | Yrd Mat Sub Peak Influence 388 | 15 388 . Initial . | . . . Average 91 | 2 134 . Maximum Alert Level 1 | . 1 . Low Security (%) 85 | 100 78 . Level 1 14 | . 21 . Level 2 . | . . . Level 3 . | . . . Level 4 . | . . . Level 5 . | . . . High Security . | . . . Max Security . | . . . Squads Dispatched 3 | . 3 . Investigation 2 | . 2 . Extermination . | . . . Reinforcement 1 | . 1 . Assault . | . . . Garrison . | . . . Intercept . | . . . Searches Triggered . | . . . Construction Impeded . | . . . Haulers Reinforced . | . . . Active Scanning Responses . | . . . Cargo Convoy Interrupts . | . . . Stealth | -11 -10 -10 --------- Run | Yrd Mat Sub Distress Signals 1 | . 1 . Communications Jammed . | . . . Distress Signals . | . . . Times Spotted 29 | . 21 8 Peak Tracking Total 4 | . 3 4 Tactical Retreats 3 | . . 3 Traps | -11 -10 -10 ------- Run | Yrd Mat Sub Traps Triggered 2 | . 2 . Indirectly . | . . . Trap Hack Attempts . | . . . Triggered . | . . . Disarmed . | . . . Reprogrammed . | . . . Reused . | . . . Traps Extracted . | . . . Installed . | . . . Triggered . | . . . Machines | -11 -10 -10 ---------- Run | Yrd Mat Sub Machines Disabled 7 | . 7 . Max in Single Turn 3 | . 3 . Machines Repaired . | . . . Machines Dismantled . | . . . Machines Sabotaged . | . . . Overloaded Fab Kills . | . . . Hacking | -11 -10 -10 --------- Run | Yrd Mat Sub Machines Accessed 8 | . 8 . Terminals 6 | . 6 . Fabricators . | . . . Repair Stations . | . . . Recycling Units 2 | . 2 . Scanalyzers . | . . . Garrison Access . | . . . Total Hacks 24 | . 24 . Successful 12 | . 12 . Failed 12 | . 12 . Catastrophic 2 | . 2 . Database Lockouts . | . . . Manual 2 | . 2 . Terminals 20 | . 20 . Fabricators . | . . . Repair Stations . | . . . Recycling Units 4 | . 4 . Scanalyzers . | . . . Garrison Access . | . . . Terminal Hacks 11 | . 11 . Branch Access Points 1 | . 1 . Terminal Index 1 | . 1 . Alert Level 2 | . 2 . Unreport Threat 1 | . 1 . Locate Traps 1 | . 1 . Dispatch Records 2 | . 2 . Zone Layout 3 | . 3 . Fabricator Hacks . | . . . Repair Station Hacks . | . . . Recycling Unit Hacks 1 | . 1 . Report Inventory 1 | . 1 . Scanalyzer . | . . . Garrison Access Hacks . | . . . Unauthorized Hacks . | . . . Terminals . | . . . Fabricators . | . . . Repair Stations . | . . . Recycling Units . | . . . Scanalyzers . | . . . Garrison Access . | . . . Data Cores Recovered . | . . . Used . | . . . Hacking Detections 8 | . 8 . Full Trace Events 3 | . 3 . Feedback Events . | . . . Feedback Blocked . | . . . Robot Schematics Acquired . | . . . Robots Built . | . . . Authchips . | . . . Time . | . . . Total Robot Build Rating . | . . . Part Schematics Acquired . | . . . Parts Built . | . . . Authchips . | . . . Time . | . . . Total Part Build Rating . | . . . Parts Repaired . | . . . Time . | . . . Parts Recycled . | . . . Recycled Matter . | . . . Retrieved Matter . | . . . Retrieved Components . | . . . Parts Scanalyzed . | . . . Part Schematics Acquired . | . . . Parts Damaged . | . . . Bothacking | -11 -10 -10 ------------ Run | Yrd Mat Sub Used RIF Installer . | . . . Robots Hacked . | . . . Non-combat . | . . . Combat . | . . . Robot Hacks Applied . | . . . Relay Couplers Released . | . . . Fabnet Peak Effective % . | . . . Robots Rewired . | . . . Allies Hacked . | . . . Hacks Repelled . | . . . Allies | -11 -10 -10 -------- Run | Yrd Mat Sub Total Allies . | . . . Largest Group . | . . . Highest-Rated Group . | . . . Highest-Rated Ally . | . . . Total Orders . | . . . Ally Attacks . | . . . Total Damage . | . . . Kills . | . . . Allies Corrupted . | . . . Allies Melted . | . . . Intel | -11 -10 -10 ------- Run | Yrd Mat Sub Robot Analysis Total . | . . . Derelict Logs Recovered . | . . . Drone Launches . | . . . Drone Recoveries . | . . . Exploration | -11 -10 -10 ------------- Run | Yrd Mat Sub Turns Passed 2328 | 672 1388 268 Spaces Moved 1512 | 327 996 189 Core 75 | 75 . . Treads . | . . . Legs 1437 | 252 996 189 Wheels . | . . . Hover . | . . . Flight . | . . . Fastest Speed 50 | 50 120 120 Average Speed 121 | 127 120 120 Slowest Speed 200 | 200 190 190 Overloaded Moves . | . . . Propulsion Burnouts . | . . . Robots Hopped . | . . . Cave-ins Triggered . | . . . Exploration Rate (%) 41 | 16 97 12 Regions Visited 2 Branch Regions 1 Pre-discovered Areas . | . . . Known Exits Taken 1 | . 1 . Unknown Exits Taken 1 | 1 . . Scrap Searched . | . . . Spaces Dug . | . . . Terrain Destroyed 133 | . 133 . Melee . | . . . Projectile . | . . . AOE 133 | . 133 . Terrain Rammed . | . . . Walls Destroyed . | . . . Machines Disabled . | . . . Actions | -11 -10 -10 --------- Run | Yrd Mat Sub Total 1900 | 577 1117 206 Wait 236 | 218 18 . Move 1510 | 326 995 189 Hop . | . . . Pick Up 35 | 16 17 2 Fast Attach 8 | . 8 . Attach 13 | 8 3 2 Detach 1 | 1 . . Swap 5 | . 5 . Drop 22 | 1 20 1 Fire 70 | 7 51 12 Melee . | . . . Ram . | . . . Kick . | . . . Crush . | . . . Escape Stasis . | . . . Rewire . | . . . Trap . | . . . Miscellaneous . | . . . Route ------- -11/Scrapyard -10/Materials (discovered 6 exits: *Mat x3 / *Min x2 / *Sub) -10/Subcaves History --------- Turn | Location | Event 8 | -11/Scrapyard | Discovered new exit (range 15) 673 | -11/Scrapyard | Entered Materials 674 | -10/Materials | Build established: Mutant 993 | -10/Materials | Core integrity fell below 50% 1090 | -10/Materials | Discovered new exit (range 4) 1254 | -10/Materials | Discovered new exit (range 12) 1370 | -10/Materials | Discovered new exit (range 13) 1572 | -10/Materials | Identified exit to Mines 1589 | -10/Materials | Build established: Scavenger-Mutant 1694 | -10/Materials | Discovered new exit (range 7) 1748 | -10/Materials | Identified exit to Materials 2022 | -10/Materials | Discovered new exit (range 8) 2030 | -10/Materials | Identified exit to Subcaves 2061 | -10/Materials | Entered Subcaves 2069 | -10/Subcaves | Shifting Twisted Machinery released Battle Rifle 2098 | -10/Subcaves | Core integrity fell below 20% 2176 | -10/Subcaves | A swath of the cavern ceiling suddenly collapsed 2246 | -10/Subcaves | Shifting Twisted Machinery released Mak. Power Source 2254 | -10/Subcaves | Shifting Twisted Machinery released Sub. Power Source 2329 | -10/Subcaves | Destroyed by Autobeam Turret with Autobeam Last Messages --------------- repair. 02145_ Lgt. Assault Rifle fries itself beyond repair. 02146_ Flight Unit fries itself beyond repair. 02148_ Flight Unit fries itself beyond repair. 02154_ Lgt. Ion Engine fries itself beyond repair. A swath of the cavern ceiling suddenly collapses. 02196_ %GU>0E=S>SORC8VU%PT XA2J=G Mak. Power Source falls loose from the Twisted Machinery. Sub. Power Source falls loose from the Twisted Machinery. 02256_ Dropped Lgt. Nuclear Core. 02256_ Acquired Mak. Power Source. 02260_ Acquired Lgt. Nuclear Core. 02276_ VW-LFB(O) collects matter. 02327_ System corrupted: Heat flow error (+135). Map ----- +----------------------------------------------------+ | ## "##"" ###"#?## ##?????????#???????????? | | # ""### ""#### ##?###?? #???????????? | | # """### "*# " ## ## # ##??????????? | | # """"##### ### ## #??????????? | | ## "#?# ## #?????????? | | ### "" ""#?# #### ##### ??????? | | ##?## "" "#?# ##### ##?##?????% ???????? | | #???##"" # ####?# ## ## ##"####?????????????? | | ##???# ###????# # ## """ #?????????????? | | # #### ###???#### ##????????????? | | # ## ##?????## [ #????????????? | | ?# ####???## # "" " ""#???????? | | ## ## | ##???## ### """""" # " ????????? | | # #### ##??## #### ##????????????? | | ##??# #??# #?# ###"#?????????????? | | ##???# #### ## ##??#?????????????? | | #????##### ### ## #????????????????? | | #????????##### = #? #????????????????? | | #???????????# ### ##????????????????? | | ##???????????# # ## #????????????????? | | ##????????????# ## #????????????????? | | #?????????????##?# #????????????????? | | "????????????????# ###### #????????????????? | | #??????????????# #????# #????????????????? | | ???????????????# #$## #????????????????? | | ??????????"t % @ #????????????????? | | ?????????? ### #????????????????? | | ??????????"t # #??# #????????????????? | | ?????????" ### ### #???##????????????????? | | ????????#" ??## ?# #?????????????????????? | | ????????#""" ????# ?# ?????????????????????? | | ????????######????? #?# ?????????????????????? | | ??????????????????? #?## ????????????????????? | | ??????????????????? #??## ????????????????????? | | ??????????????????? ##????# ????????????????????? | | ???????????????????#???????###???????????????????? | | ?????????????????????????????????????????????????? | | ?????????????????????????????????????????????????? | | ?????????????????????????????????????????????????? | | ?????????????????????????????????????????????????? | | ?????????????????????????????????????????????????? | | ?????????????????????????????????????????????????? | | ?????????????????????????????????????????????????? | | ?????????????????????????????????????????????????? | | ?????????????????????????????????????????????????? | | ?????????????????????????????????????????????????? | | ?????????????????????????????????????????????????? | | ?????????????????????????????????????????????????? | | ?????????????????????????????????????????????????? | | ?????????????????????????????????????????????????? | +----------------------------------------------------+ Best States ------------- Heat Dissipation 25 Energy Generation 15 Energy Capacity 250 Matter Stores 300 Matter Capacity 300 Sight Range 18 Terrain Scan Range 16 Terrain Scan Density 10 Evasion (%) 55 Targeting Accuracy 5 Item Schematics ----------------- None Robot Schematics ------------------ None Fabricated ------------ Nothing Alien Tech Used ----------------- None Achievements -------------- None Challenges ------------ None Game ------ Seed ShockGrapheneTrap Manual? 0 Play Time 00:29:44 Cumulative 14.4 hours Start 2024.03.24 @ 11:31:15 End 2024.03.24 @ 11:59:18 Sessions 1 Manual Loads 0 Difficulty Rogue Special Mode None Game No. 40 Rogue 40 Adventurer 0 Explorer 0 Win Type - Total 0 Types 0/0/0/0/0/0/0/0/0 Lore% 14 Gallery% 20 Achievement% 15 Wizard Run 0 Options --------- Layout 1 ASCII 0 Keyboard 0 Movement Numpad Keybinds 0 Fullscreen 1 Font 24/Smallcaps Map View 50x35 Zoom Use 0% Tactical HUD 1 Map Filters NONE Filters NONE Steam 1 RUN: 29042998-e70c-4886-b115-9938025a8bb1